[Event "Chile-ch Women 2019"]
[Site "Santiago Las Condes"]
[Date "2019.02.15"]
[Round "6.5"]
[White "Hormazabal Figueroa, Constanza Va"]
[Black "Lemus Pena, Macarena"]
[Result "0-1"]
[ECO "C10"]
[WhiteElo "1624"]
[BlackElo "1757"]
[Annotator "NA"]
[PlyCount "118"]
[EventDate "2019.02.12"]
[EventType "swiss"]
[EventCountry "CHI"]
[SourceTitle "playchess.com"]
[Source "ChessBase"]
[SourceQuality "1"]
[TimeControl "5400+30"]

1. e4 {[%emt 0:00:00]} e6 {[%emt 0:00:17]} 2. d4 {[%emt 0:00:00]} d5 {[%emt 0:00:11]} 3. Nd2 {[%emt 0:00:00]} dxe4 {[%emt 0:01:07]} 4. Nxe4 {[%emt 0:00:04]} Nd7 {[%emt 0:00:06]} 5. Nf3 {[%emt 0:00:09]} Ngf6 {[%emt 0:00:07]} 6. Nxf6+ {[%emt 0:00:08]} Nxf6 {[%emt 0:00:06]} 7. c3 {[%emt 0:00:29]} c5 {[%emt 0:00:42]} 8. Be3 {[%emt 0:00:24]} Nd5 {[%emt 0:16:07]} 9. Bg5 {[%emt 0:05:15]} Qc7 {[%emt 0:00:09]} 10. Qd2 {[%emt 0:02:44]} Bd6 {[%emt 0:06:19]} 11. c4 {[%emt 0:02:13]} Nf6 {[%emt 0:01:45]} 12. Bd3 {[%emt 0:06:01]} b6 {[%emt 0:01:32]} 13. O-O {[%emt 0:02:43]} Bb7 {[%emt 0:00:16]} 14. d5 {[%emt 0:00:50]} h6 {[%emt 0:32:46]} 15. Bxf6 {[%emt 0:06:40]} gxf6 {[%emt 0:00:06]} 16. Qe2 {[%emt 0:01:21]} O-O-O {[%emt 0:11:05]} 17. dxe6 {[%emt 0:01:18]} Rde8 {[%emt 0:00:06]} 18. Bf5 {[%emt 0:01:45]} Kb8 {[%emt 0:00:09]} 19. Kh1 {[%emt 0:03:44]} fxe6 {[%emt 0:00:12]} 20. Be4 {[%emt 0:00:26]} Bc8 {[%emt 0:00:55]} 21. a3 {[%emt 0:02:45]} f5 {[%emt 0:00:11]} 22. Bc2 {[%emt 0:00:34]} e5 {[%emt 0:00:32]} 23. Rfb1 {[%emt 0:02:46]} e4 {[%emt 0:03:34]} 24. Nd2 {[%emt 0:00:41]} Rhg8 {[%emt 0:00:13]} 25. b4 {[%emt 0:02:16]} Bb7 {[%emt 0:02:06]} 26. h3 {[%emt 0:08:09]} Bf4 {[%emt 0:02:09]} 27. Rg1 {[%emt 0:02:41]} Rd8 {[%emt 0:07:06]} 28. Nf1 {[%emt 0:04:30]} Be5 {[%emt 0:02:38]} 29. Rd1 {[%emt 0:01:36]} Rxd1 {[%emt 0:00:05]} 30. Qxd1 {[%emt 0:00:10]} cxb4 {[%emt 0:00:11]} 31. axb4 {[%emt 0:00:26]} f4 {[%emt 0:00:20]} 32. Nd2 {[%emt 0:07:07]} Rd8 {[%emt 0:03:06]} 33. Qe2 {[%emt 0:02:06]} f3 {[%emt 0:00:48]} 34. gxf3 {[%emt 0:02:08]} Qd7 {[%emt 0:00:13]} 35. Rg4 {[%emt 0:03:33]} Qxd2 {[%emt 0:01:13]} 36. Qxd2 {[%emt 0:00:24]} Rxd2 {[%emt 0:00:11]} 37. Bxe4 {[%emt 0:00:29]} Rxf2 {[%emt 0:00:25]} 38. Kg1 {[%emt 0:00:57]} Rd2 {[%emt 0:01:20]} 39. Rg8+ {[%emt 0:00:33]} Kc7 {[%emt 0:00:10]} 40. Re8 {[%emt 0:00:31]} Bd6 {[%emt 0:02:14]} 41. Rh8 {[%emt 0:00:29]} Bxe4 {[%emt 0:01:46]} 42. fxe4 {[%emt 0:00:22]} Bxb4 {[%emt 0:00:10]} 43. Rxh6 {[%emt 0:00:35]} Rd4 {[%emt 0:01:21]} 44. Rh7+ {[%emt 0:00:31]} Kc6 {[%emt 0:00:21]} 45. Rxa7 {[%emt 0:00:17]} Rxe4 {[%emt 0:00:05]} 46. Kg2 {[%emt 0:00:56]} Rxc4 {[%emt 0:00:34]} 47. Kg3 {[%emt 0:00:07]} Be1+ {[%emt 0:00:06]} 48. Kf3 {[%emt 0:00:19]} Rh4 {[%emt 0:00:45]} 49. Kg2 {[%emt 0:00:31]} b5 {[%emt 0:00:08]} 50. Re7 {[%emt 0:00:29]} Bb4 {[%emt 0:00:32]} 51. Re5 {[%emt 0:00:12]} Bd6 {[%emt 0:00:21]} 52. Re3 {[%emt 0:00:35]} b4 {[%emt 0:00:06]} 53. Kf1 {[%emt 0:00:11]} Rh5 {[%emt 0:00:40]} 54. Kg2 {[%emt 0:00:44]} Rb5 {[%emt 0:00:08]} 55. Rb3 {[%emt 0:00:23]} Ra5 {[%emt 0:01:02]} 56. h4 {[%emt 0:00:26]} Ra2+ {[%emt 0:00:09]} 57. Kg1 {[%emt 0:00:58]} Ra3 {[%emt 0:00:04]} 58. Rb2 {[%emt 0:00:28]} b3 {[%emt 0:00:20]} 59. Rb1 {[%emt 0:00:52]} Be5 {[%emt 0:00:09]} 0-1

[Event "Chile-ch Women 2019"]
[Site "Santiago Las Condes"]
[Date "2019.02.15"]
[Round "6.6"]
[White "Vildosola Canales, Melany"]
[Black "Vargas Banda, Valentina"]
[Result "1-0"]
[ECO "B80"]
[WhiteElo "1531"]
[BlackElo "1682"]
[Annotator "NA"]
[PlyCount "55"]
[EventDate "2019.02.12"]
[EventType "swiss"]
[EventCountry "CHI"]
[SourceTitle "playchess.com"]
[Source "ChessBase"]
[SourceQuality "1"]
[TimeControl "5400+30"]

1. e4 {[%emt 0:00:05]} c5 {[%emt 0:00:00]} 2. Nf3 {[%emt 0:00:08]} d6 {[%emt 0:00:00]} 3. d4 {[%emt 0:00:05]} cxd4 {[%emt 0:00:00]} 4. Nxd4 {[%emt 0:00:05]} Nf6 {[%emt 0:00:00]} 5. Nc3 {[%emt 0:00:08]} a6 {[%emt 0:00:00]} 6. Be3 {[%emt 0:00:06]} e6 {[%emt 0:00:00]} 7. f3 {[%emt 0:01:27]} Be7 {[%emt 0:03:51]} 8. Qd2 {[%emt 0:00:41]} Qc7 {[%emt 0:01:27]} 9. O-O-O {[%emt 0:02:03]} Nc6 {[%emt 0:02:27]} 10. g4 {[%emt 0:04:41]} Nd7 {[%emt 0:09:27]} 11. h4 {[%emt 0:04:18]} Na5 {[%emt 0:03:45]} 12. g5 {[%emt 0:17:22]} Nc4 {[%emt 0:03:58]} 13. Bxc4 {[%emt 0:03:14]} Qxc4 {[%emt 0:00:36]} 14. h5 {[%emt 0:02:54]} b5 {[%emt 0:01:46]} 15. Kb1 {[%emt 0:03:21]} b4 {[%emt 0:27:02]} 16. Nce2 {[%emt 0:06:07]} d5 {[%emt 0:02:06]} 17. g6 {[%emt 0:14:00]} dxe4 {[%emt 0:08:44]} 18. gxf7+ {[%emt 0:05:19]} Kxf7 {[%emt 0:09:51]} 19. fxe4 {[%emt 0:01:08]} e5 {[%emt 0:05:56]} 20. b3 {[%emt 0:09:07]} Qc7 {[%emt 0:02:00]} 21. Nf5 {[%emt 0:00:47]} Nf6 {[%emt 0:00:56]} 22. Nxe7 {[%emt 0:04:14]} Kxe7 {[%emt 0:01:20]} 23. Bg5 {[%emt 0:02:02]} a5 {[%emt 0:01:29]} 24. Bxf6+ {[%emt 0:01:22]} gxf6 {[%emt 0:06:20]} 25. Rhg1 {[%emt 0:02:36]} Be6 {[%emt 0:03:02]} 26. Rg7+ {[%emt 0:01:12]} Bf7 {[%emt 0:00:12]} 27. Qd5 {[%emt 0:01:27]} Rhf8 {[%emt 0:01:55]} 28. Rxf7+ {[%emt 0:10:20]} 1-0

[Event "Chile-ch Women 2019"]
[Site "Santiago Las Condes"]
[Date "2019.02.15"]
[Round "6.8"]
[White "Sangar Sangar, Saisha"]
[Black "Yanez Araya, Josefa"]
[Result "0-1"]
[ECO "C01"]
[WhiteElo "1166"]
[BlackElo "1688"]
[Annotator "NA"]
[PlyCount "107"]
[EventDate "2019.02.12"]
[EventType "swiss"]
[EventCountry "CHI"]
[SourceTitle "playchess.com"]
[Source "ChessBase"]
[SourceQuality "1"]
[TimeControl "5400+30"]

1. e4 {[%emt 0:00:00]} e6 {[%emt 0:01:12]} 2. d4 {[%emt 0:00:00]} d5 {[%emt 0:00:20]} 3. exd5 {[%emt 0:00:00]} exd5 {[%emt 0:00:15]} 4. Nf3 {[%emt 0:00:30]} Bd6 {[%emt 0:01:02]} 5. Nc3 {[%emt 0:00:54]} Ne7 {[%emt 0:00:32]} 6. Bd3 {[%emt 0:00:52]} Bg4 {[%emt 0:01:46]} 7. O-O {[%emt 0:02:48]} Nbc6 {[%emt 0:01:24]} 8. Be3 {[%emt 0:01:32]} Qd7 {[%emt 0:01:16]} 9. h3 {[%emt 0:03:54]} Bh5 {[%emt 0:00:31]} 10. Qe2 {[%emt 0:04:47]} O-O-O {[%emt 0:01:46]} 11. Nb5 {[%emt 0:05:44]} f6 {[%emt 0:02:24]} 12. Nxd6+ {[%emt 0:01:19]} Qxd6 {[%emt 0:00:26]} 13. Bd2 {[%emt 0:04:23]} Nxd4 {[%emt 0:03:42]} 14. Qe3 {[%emt 0:03:29]} Nxf3+ {[%emt 0:00:53]} 15. gxf3 {[%emt 0:00:40]} Kb8 {[%emt 0:00:59]} 16. Qf4 {[%emt 0:02:20]} Qxf4 {[%emt 0:02:03]} 17. Bxf4 {[%emt 0:00:26]} Bxf3 {[%emt 0:00:45]} 18. Rfe1 {[%emt 0:01:58]} Nc6 {[%emt 0:03:07]} 19. Bb5 {[%emt 0:04:59]} g5 {[%emt 0:04:29]} 20. Bh2 {[%emt 0:01:56]} Nd4 {[%emt 0:03:31]} 21. Bd3 {[%emt 0:01:58]} Bh5 {[%emt 0:00:42]} 22. Re7 {[%emt 0:01:49]} Nf3+ {[%emt 0:01:17]} 23. Kh1 {[%emt 0:01:09]} Nxh2 {[%emt 0:00:52]} 24. Kxh2 {[%emt 0:00:30]} Bg6 {[%emt 0:04:05]} 25. Bxg6 {[%emt 0:01:34]} hxg6 {[%emt 0:00:09]} 26. Rae1 {[%emt 0:01:00]} g4 {[%emt 0:01:42]} 27. Kg3 {[%emt 0:02:18]} gxh3 {[%emt 0:00:28]} 28. Kh2 {[%emt 0:03:09]} c6 {[%emt 0:04:06]} 29. Rf7 {[%emt 0:01:07]} Rdf8 {[%emt 0:04:56]} 30. Rxf8+ {[%emt 0:01:24]} Rxf8 {[%emt 0:00:08]} 31. Kxh3 {[%emt 0:00:20]} Kc8 {[%emt 0:00:50]} 32. Re7 {[%emt 0:01:32]} Rh8+ {[%emt 0:00:43]} 33. Kg3 {[%emt 0:01:10]} Rf8 {[%emt 0:01:34]} 34. Rg7 {[%emt 0:01:39]} g5 {[%emt 0:00:15]} 35. Rg6 {[%emt 0:04:38]} a5 {[%emt 0:12:21]} 36. Kg4 {[%emt 0:01:48]} b5 {[%emt 0:07:13]} 37. Kf5 {[%emt 0:01:16]} Kd7 {[%emt 0:02:28]} 38. Rxf6 {[%emt 0:01:29]} Rxf6+ {[%emt 0:00:12]} 39. Kxf6 {[%emt 0:00:25]} g4 {[%emt 0:00:12]} 40. Kf5 {[%emt 0:01:06]} Ke7 {[%emt 0:00:26]} 41. Kxg4 {[%emt 0:00:48]} Kf6 {[%emt 0:00:09]} 42. Kf4 {[%emt 0:00:14]} a4 {[%emt 0:05:15]} 43. b4 {[%emt 0:01:37]} axb3 {[%emt 0:00:41]} 44. cxb3 {[%emt 0:00:17]} b4 {[%emt 0:01:25]} 45. Ke3 {[%emt 0:03:35]} c5 {[%emt 0:00:33]} 46. Kd3 {[%emt 0:00:44]} Kf5 {[%emt 0:02:43]} 47. Ke3 {[%emt 0:02:25]} d4+ {[%emt 0:01:46]} 48. Kd3 {[%emt 0:00:47]} Kf4 {[%emt 0:00:38]} 49. Kc4 {[%emt 0:00:50]} Kf3 {[%emt 0:00:39]} 50. Kd3 {[%emt 0:03:54]} Kxf2 {[%emt 0:00:13]} 51. Kc4 {[%emt 0:00:52]} Ke2 {[%emt 0:00:23]} 52. Kxc5 {[%emt 0:00:37]} d3 {[%emt 0:00:09]} 53. Kxb4 {[%emt 0:00:16]} d2 {[%emt 0:00:08]} 54. a4 {[%emt 0:01:36]} 0-1

[Event "Chile-ch Women 2019"]
[Site "Santiago Las Condes"]
[Date "2019.02.16"]
[Round "7.1"]
[White "Gomez Barrera, Javiera Belen"]
[Black "Jorquera Cabello, Valentina"]
[Result "1-0"]
[ECO "B33"]
[WhiteElo "1990"]
[BlackElo "2016"]
[Annotator "NA"]
[PlyCount "61"]
[EventDate "2019.02.12"]
[EventType "swiss"]
[EventCountry "CHI"]
[SourceTitle "playchess.com"]
[Source "ChessBase"]
[SourceQuality "1"]
[TimeControl "5400+30"]

1. e4 {[%emt 0:00:00]} c5 {[%emt 0:00:00]} 2. Nf3 {[%emt 0:00:00]} Nc6 {[%emt 0:00:00]} 3. d4 {[%emt 0:00:00]} cxd4 {[%emt 0:00:00]} 4. Nxd4 {[%emt 0:00:00]} Nf6 {[%emt 0:00:00]} 5. Nc3 {[%emt 0:00:00]} e5 {[%emt 0:00:04]} 6. Ndb5 {[%emt 0:00:03]} d6 {[%emt 0:00:04]} 7. Bg5 {[%emt 0:00:15]} a6 {[%emt 0:00:34]} 8. Na3 {[%emt 0:00:13]} b5 {[%emt 0:00:36]} 9. Nd5 {[%emt 0:00:18]} Be7 {[%emt 0:00:22]} 10. Bxf6 {[%emt 0:00:19]} Bxf6 {[%emt 0:00:04]} 11. c3 {[%emt 0:00:20]} Rb8 {[%emt 0:00:48]} 12. Nc2 {[%emt 0:03:00]} Bg5 {[%emt 0:00:37]} 13. a4 {[%emt 0:01:45]} bxa4 {[%emt 0:00:52]} 14. Ncb4 {[%emt 0:00:29]} Nxb4 {[%emt 0:00:20]} 15. cxb4 {[%emt 0:00:51]} O-O {[%emt 0:33:04]} 16. Rxa4 {[%emt 0:04:53]} a5 {[%emt 0:03:19]} 17. b5 {[%emt 0:01:11]} Bd7 {[%emt 0:13:29]} 18. h4 {[%emt 0:14:31]} Bh6 {[%emt 0:02:30]} 19. Nc3 {[%emt 0:00:30]} Be6 {[%emt 0:08:15]} 20. Bc4 {[%emt 0:40:27]} Bxc4 {[%emt 0:04:35]} 21. Rxc4 {[%emt 0:00:09]} Rb6 {[%emt 0:13:17]} 22. Qd5 {[%emt 0:10:17]} Qb8 {[%emt 0:03:00]} 23. O-O {[%emt 0:02:15]} Rd8 {[%emt 0:01:38]} 24. Ra1 {[%emt 0:02:09]} Qa7 {[%emt 0:06:27]} 25. b4 {[%emt 0:04:19]} a4 {[%emt 0:00:58]} 26. Rxa4 {[%emt 0:00:54]} Qe7 {[%emt 0:02:45]} 27. Ra8 {[%emt 0:07:29]} Rbb8 {[%emt 0:05:01]} 28. Rxb8 {[%emt 0:00:17]} Rxb8 {[%emt 0:00:01]} 29. b6 {[%emt 0:02:12]} g6 {[%emt 0:01:04]} 30. Rc7 {[%emt 0:00:53]} Qd8 {[%emt 0:01:16]} 31. Qxf7+ {[%emt 0:05:31] Bf8 [%clk 0:00:00]} 1-0

[Event "Chile-ch Women 2019"]
[Site "Santiago Las Condes"]
[Date "2019.02.16"]
[Round "7.2"]
[White "Abarca Gonzalez, Damaris"]
[Black "Lemus Pena, Macarena"]
[Result "1-0"]
[ECO "C02"]
[WhiteElo "2039"]
[BlackElo "1757"]
[Annotator "NA"]
[PlyCount "81"]
[EventDate "2019.02.12"]
[EventType "swiss"]
[EventCountry "CHI"]
[SourceTitle "playchess.com"]
[Source "ChessBase"]
[SourceQuality "1"]
[TimeControl "5400+30"]

1. e4 {[%emt 0:00:00]} e6 {[%emt 0:00:00]} 2. d4 {[%emt 0:00:00]} d5 {[%emt 0:00:09]} 3. e5 {[%emt 0:00:00]} c5 {[%emt 0:00:10]} 4. c3 {[%emt 0:00:01]} Qb6 {[%emt 0:00:16]} 5. a3 {[%emt 0:01:21]} Nc6 {[%emt 0:01:17]} 6. Nf3 {[%emt 0:00:12]} Nh6 {[%emt 0:01:05]} 7. b4 {[%emt 0:01:03]} cxd4 {[%emt 0:00:10]} 8. cxd4 {[%emt 0:00:05]} Nf5 {[%emt 0:00:24]} 9. Bb2 {[%emt 0:01:10]} Bd7 {[%emt 0:01:28]} 10. Nc3 {[%emt 0:07:23]} Ncxd4 {[%emt 0:32:10]} 11. Nxd4 {[%emt 0:00:25]} Qxd4 {[%emt 0:00:10]} 12. Qxd4 {[%emt 0:01:57]} Nxd4 {[%emt 0:00:19]} 13. Nxd5 {[%emt 0:01:15]} Nc2+ {[%emt 0:00:36]} 14. Kd2 {[%emt 0:00:22]} O-O-O {[%emt 0:01:44]} 15. Kxc2 {[%emt 0:03:11]} Ba4+ {[%emt 0:00:12]} 16. Kd2 {[%emt 0:00:46]} Rxd5+ {[%emt 0:00:56]} 17. Ke3 {[%emt 0:00:15]} Be7 {[%emt 0:04:14]} 18. Bc4 {[%emt 0:07:16]} Rd7 {[%emt 0:00:07]} 19. Rhc1 {[%emt 0:00:31]} Kb8 {[%emt 0:00:08]} 20. Rc3 {[%emt 0:00:45]} Rhd8 {[%emt 0:00:10]} 21. Rd3 {[%emt 0:01:29]} a5 {[%emt 0:07:05]} 22. f4 {[%emt 0:16:30]} axb4 {[%emt 0:01:30]} 23. axb4 {[%emt 0:00:05]} b5 {[%emt 0:00:12]} 24. Rxd7 {[%emt 0:11:43]} Rxd7 {[%emt 0:00:23]} 25. Bd4 {[%emt 0:05:49]} Bxb4 {[%emt 0:05:48]} 26. Bd3 {[%emt 0:09:58]} Bd2+ {[%emt 0:10:54]} 27. Kxd2 {[%emt 0:00:39]} Rxd4 {[%emt 0:00:08]} 28. Ke3 {[%emt 0:00:11]} Rd7 {[%emt 0:07:40]} 29. Bxh7 {[%emt 0:00:58]} g6 {[%emt 0:04:06]} 30. Bg8 {[%emt 0:07:08]} Kc7 {[%emt 0:01:59]} 31. g4 {[%emt 0:00:36]} Kd8 {[%emt 0:01:26]} 32. Rc1 {[%emt 0:01:56]} Ke7 {[%emt 0:01:22]} 33. Rc8 {[%emt 0:00:38]} b4 {[%emt 0:00:56]} 34. Rb8 {[%emt 0:00:37]} Bc6 {[%emt 0:00:18]} 35. f5 {[%emt 0:02:38]} exf5 {[%emt 0:01:49]} 36. gxf5 {[%emt 0:00:13]} Bb7 {[%emt 0:04:35]} 37. f6+ {[%emt 0:00:58]} Ke6 {[%emt 0:01:01]} 38. Re8+ {[%emt 0:00:01]} Kf5 {[%emt 0:05:07]} 39. e6 {[%emt 0:00:25]} Bc6 {[%emt 0:01:11]} 40. exd7 {[%emt 0:00:24]} Bxd7 {[%emt 0:00:11]} 41. Re7 {[%emt 0:00:20]} 1-0

[Event "Chile-ch Women 2019"]
[Site "Santiago Las Condes"]
[Date "2019.02.16"]
[Round "7.3"]
[White "Arbunic Castro, Giovanna"]
[Black "Manriquez Abarzua, Maria Belen"]
[Result "1-0"]
[ECO "E07"]
[WhiteElo "1995"]
[BlackElo "1650"]
[Annotator "NA"]
[PlyCount "95"]
[EventDate "2019.02.12"]
[EventType "swiss"]
[EventCountry "CHI"]
[SourceTitle "playchess.com"]
[Source "ChessBase"]
[SourceQuality "1"]
[TimeControl "5400+30"]

1. Nf3 {[%emt 0:00:00]} Nf6 {[%emt 0:00:00]} 2. d4 {[%emt 0:00:00]} e6 {[%emt 0:00:10]} 3. c4 {[%emt 0:00:04]} d5 {[%emt 0:00:04]} 4. Nc3 {[%emt 0:02:11]} c6 {[%emt 0:00:57]} 5. g3 {[%emt 0:02:13]} Be7 {[%emt 0:03:04]} 6. Bg2 {[%emt 0:00:39]} Nbd7 {[%emt 0:02:13]} 7. O-O {[%emt 0:09:49]} O-O {[%emt 0:06:03]} 8. Qd3 {[%emt 0:02:31]} Qc7 {[%emt 0:06:38]} 9. Bg5 {[%emt 0:02:30]} h6 {[%emt 0:02:17]} 10. Bxf6 {[%emt 0:00:17]} Nxf6 {[%emt 0:00:48]} 11. Rac1 {[%emt 0:00:10]} Qb8 {[%emt 0:08:15]} 12. e4 {[%emt 0:03:35]} dxe4 {[%emt 0:05:47]} 13. Nxe4 {[%emt 0:00:09]} Rd8 {[%emt 0:00:24]} 14. Nxf6+ {[%emt 0:11:33]} Bxf6 {[%emt 0:00:03]} 15. Qe3 {[%emt 0:00:07]} b6 {[%emt 0:05:35]} 16. Ne5 {[%emt 0:01:12]} Bxe5 {[%emt 0:02:31]} 17. dxe5 {[%emt 0:00:13]} Bb7 {[%emt 0:00:32]} 18. c5 {[%emt 0:00:16]} Rc8 {[%emt 0:06:53]} 19. Rfd1 {[%emt 0:01:47]} Qc7 {[%emt 0:01:32]} 20. b4 {[%emt 0:12:03]} b5 {[%emt 0:02:39]} 21. Rd6 {[%emt 0:00:46]} a5 {[%emt 0:02:04]} 22. a3 {[%emt 0:00:23]} axb4 {[%emt 0:01:46]} 23. axb4 {[%emt 0:00:12]} Ra4 {[%emt 0:01:03]} 24. Qd4 {[%emt 0:00:51]} Rca8 {[%emt 0:03:59]} 25. Rd7 {[%emt 0:01:55]} Qc8 {[%emt 0:00:15]} 26. Rd1 {[%emt 0:00:25]} Ra1 {[%emt 0:01:04]} 27. Be4 {[%emt 0:02:47]} Rxd1+ {[%emt 0:00:24]} 28. Qxd1 {[%emt 0:00:07]} Ra1 {[%emt 0:00:29]} 29. Qxa1 {[%emt 0:00:55]} Qxd7 {[%emt 0:00:02]} 30. Qa7 {[%emt 0:00:27]} f5 {[%emt 0:03:09]} 31. exf6 {[%emt 0:03:09]} gxf6 {[%emt 0:01:10]} 32. Qb8+ {[%emt 0:00:50]} Kg7 {[%emt 0:00:22]} 33. Qf4 {[%emt 0:04:24]} e5 {[%emt 0:03:29]} 34. Qf3 {[%emt 0:01:07]} Qe6 {[%emt 0:06:23]} 35. Bf5 {[%emt 0:07:39]} Qc4 {[%emt 0:03:01]} 36. Qd1 {[%emt 0:03:35]} Qf7 {[%emt 0:04:03]} 37. Qd6 {[%emt 0:01:26]} Qd5 {[%emt 0:03:11]} 38. Qxd5 {[%emt 0:01:11]} cxd5 {[%emt 0:00:23]} 39. Bd7 {[%emt 0:00:05]} Kf7 {[%emt 0:01:32]} 40. c6 {[%emt 0:00:27]} Ba6 {[%emt 0:01:53]} 41. c7 {[%emt 0:00:08]} Ke7 {[%emt 0:00:21]} 42. c8=Q {[%emt 0:26:52]} Bxc8 {[%emt 0:00:00]} 43. Bxc8 {[%emt 0:00:00]} Kd6 {[%emt 0:00:00]} 44. f3 {[%emt 0:00:00]} Kc6 {[%emt 0:00:00]} 45. Kf2 {[%emt 0:00:00]} d4 {[%emt 0:00:00]} 46. Ke2 {[%emt 0:00:00]} Kd6 {[%emt 0:00:43]} 47. Kd3 {[%emt 0:00:00]} Kc7 {[%emt 0:01:01]} 48. Bf5 {[%emt 0:00:00]} 1-0

[Event "Chile-ch Women 2019"]
[Site "Santiago Las Condes"]
[Date "2019.02.16"]
[Round "7.4"]
[White "Reyes Jara, Paula"]
[Black "Vildosola Canales, Melany"]
[Result "1-0"]
[ECO "B33"]
[WhiteElo "1955"]
[BlackElo "1531"]
[Annotator "NA"]
[PlyCount "77"]
[EventDate "2019.02.12"]
[EventType "swiss"]
[EventCountry "CHI"]
[SourceTitle "playchess.com"]
[Source "ChessBase"]
[SourceQuality "1"]
[TimeControl "5400+30"]

1. e4 {[%emt 0:04:49]} c5 {[%emt 0:00:00]} 2. Nf3 {[%emt 0:01:00]} Nc6 {[%emt 0:00:00]} 3. d4 {[%emt 0:02:23]} cxd4 {[%emt 0:00:00]} 4. Nxd4 {[%emt 0:00:07]} Nf6 {[%emt 0:00:02]} 5. Nc3 {[%emt 0:00:42]} e5 {[%emt 0:00:19]} 6. Ndb5 {[%emt 0:01:59]} d6 {[%emt 0:00:45]} 7. Bg5 {[%emt 0:00:21]} a6 {[%emt 0:00:12]} 8. Bxf6 {[%emt 0:01:37]} gxf6 {[%emt 0:00:54]} 9. Na3 {[%emt 0:01:35]} b5 {[%emt 0:01:34]} 10. Nd5 {[%emt 0:02:01]} Bg7 {[%emt 0:09:21]} 11. c3 {[%emt 0:03:24]} O-O {[%emt 0:02:24]} 12. Qf3 {[%emt 0:03:00]} Be6 {[%emt 0:03:03]} 13. h4 {[%emt 0:02:53]} Bxd5 {[%emt 0:16:44]} 14. exd5 {[%emt 0:00:37]} e4 {[%emt 0:03:29]} 15. Qg4 {[%emt 0:04:13]} Ne5 {[%emt 0:06:38]} 16. Qxe4 {[%emt 0:03:00]} Re8 {[%emt 0:01:14]} 17. O-O-O {[%emt 0:01:48]} Nc4 {[%emt 0:02:20]} 18. Qg4 {[%emt 0:02:58]} Nxa3 {[%emt 0:03:38]} 19. bxa3 {[%emt 0:00:40]} Qa5 {[%emt 0:09:10]} 20. Qb4 {[%emt 0:08:36]} Qxb4 {[%emt 0:13:55]} 21. axb4 {[%emt 0:00:05]} f5 {[%emt 0:00:52]} 22. Rh3 {[%emt 0:02:57]} Rac8 {[%emt 0:02:27]} 23. Kb2 {[%emt 0:01:25]} Rc7 {[%emt 0:03:20]} 24. Kb3 {[%emt 0:01:51]} Rce7 {[%emt 0:05:10]} 25. a4 {[%emt 0:02:41]} Rb8 {[%emt 0:12:23]} 26. axb5 {[%emt 0:00:16]} axb5 {[%emt 0:00:07]} 27. Bd3 {[%emt 0:00:49]} Re5 {[%emt 0:00:46]} 28. Rf3 {[%emt 0:00:55]} Rxd5 {[%emt 0:02:23]} 29. Rxf5 {[%emt 0:00:07]} Rxf5 {[%emt 0:00:20]} 30. Bxf5 {[%emt 0:00:08]} Be5 {[%emt 0:00:09]} 31. Rd5 {[%emt 0:00:33]} Rb7 {[%emt 0:00:40]} 32. Bd3 {[%emt 0:04:02]} Rc7 {[%emt 0:00:33]} 33. c4 {[%emt 0:00:05]} bxc4+ {[%emt 0:01:00]} 34. Bxc4 {[%emt 0:00:06]} Rb7 {[%emt 0:00:17]} 35. g3 {[%emt 0:00:13]} Rb6 {[%emt 0:00:31]} 36. f4 {[%emt 0:00:12]} Bf6 {[%emt 0:00:38]} 37. Rf5 {[%emt 0:01:32]} Kg7 {[%emt 0:00:34]} 38. h5 {[%emt 0:00:10]} h6 {[%emt 0:00:27]} 39. g4 {[%emt 0:00:06]} 1-0

[Event "Chile-ch Women 2019"]
[Site "Santiago Las Condes"]
[Date "2019.02.16"]
[Round "7.5"]
[White "Abdala Cancino, Patricia Anastas"]
[Black "Sanchez Tobar, Francisca Valenti"]
[Result "0-1"]
[ECO "C54"]
[WhiteElo "1534"]
[BlackElo "1817"]
[Annotator "NA"]
[PlyCount "114"]
[EventDate "2019.02.12"]
[EventType "swiss"]
[EventCountry "CHI"]
[SourceTitle "playchess.com"]
[Source "ChessBase"]
[SourceQuality "1"]
[TimeControl "5400+30"]

1. e4 {[%emt 0:00:00]} e5 {[%emt 0:01:56]} 2. Nf3 {[%emt 0:00:00]} Nc6 {[%emt 0:00:11]} 3. Bc4 {[%emt 0:00:05]} Bc5 {[%emt 0:00:24]} 4. c3 {[%emt 0:00:48]} Nf6 {[%emt 0:00:08]} 5. d3 {[%emt 0:00:17]} d6 {[%emt 0:00:41]} 6. Bb3 {[%emt 0:00:15]} a6 {[%emt 0:00:07]} 7. Bc2 {[%emt 0:00:22]} h6 {[%emt 0:01:28]} 8. Nbd2 {[%emt 0:12:10]} Bd7 {[%emt 0:06:38]} 9. Nf1 {[%emt 0:00:46]} Ba7 {[%emt 0:04:19]} 10. Ng3 {[%emt 0:00:30]} g5 {[%emt 0:04:10]} 11. Be3 {[%emt 0:04:21]} Bxe3 {[%emt 0:06:09]} 12. fxe3 {[%emt 0:00:11]} Qe7 {[%emt 0:00:20]} 13. Qe2 {[%emt 0:01:45]} O-O-O {[%emt 0:00:25]} 14. O-O-O {[%emt 0:01:32]} d5 {[%emt 0:10:21]} 15. d4 {[%emt 0:08:52]} dxe4 {[%emt 0:09:06]} 16. Nxe4 {[%emt 0:01:37]} Nxe4 {[%emt 0:00:07]} 17. Bxe4 {[%emt 0:00:14]} exd4 {[%emt 0:00:21]} 18. exd4 {[%emt 0:01:16]} Rhe8 {[%emt 0:01:41]} 19. Rhe1 {[%emt 0:01:18]} f5 {[%emt 0:03:38]} 20. Bd3 {[%emt 0:00:27]} Qxe2 {[%emt 0:12:58]} 21. Rxe2 {[%emt 0:06:49]} Rxe2 {[%emt 0:00:11]} 22. Bxe2 {[%emt 0:00:06]} Re8 {[%emt 0:01:34]} 23. Bd3 {[%emt 0:01:05]} Kd8 {[%emt 0:02:50]} 24. Kd2 {[%emt 0:00:41]} Re7 {[%emt 0:01:02]} 25. Re1 {[%emt 0:01:31]} Rxe1 {[%emt 0:00:14]} 26. Kxe1 {[%emt 0:00:17]} Ke7 {[%emt 0:00:03]} 27. Kf2 {[%emt 0:10:50]} Kf6 {[%emt 0:00:16]} 28. Nd2 {[%emt 0:03:10]} Ne7 {[%emt 0:03:04]} 29. Nb3 {[%emt 0:01:57]} Nd5 {[%emt 0:01:04]} 30. Bc4 {[%emt 0:07:27]} Nb6 {[%emt 0:01:05]} 31. Nc5 {[%emt 0:01:16]} Bc8 {[%emt 0:06:37]} 32. Bb3 {[%emt 0:03:45]} Nd7 {[%emt 0:02:19]} 33. Be6 {[%emt 0:02:51]} Nxc5 {[%emt 0:00:13]} 34. Bxc8 {[%emt 0:00:15]} Ne4+ {[%emt 0:00:04]} 35. Ke3 {[%emt 0:00:50]} Nd6 {[%emt 0:00:08]} 36. Bd7 {[%emt 0:01:04]} c6 {[%emt 0:03:47]} 37. g4 {[%emt 0:00:22]} f4+ {[%emt 0:00:32]} 38. Kf3 {[%emt 0:02:59]} Ke7 {[%emt 0:01:15]} 39. Bf5 {[%emt 0:00:28]} Nxf5 {[%emt 0:00:23]} 40. gxf5 {[%emt 0:00:07]} Kf6 {[%emt 0:00:04]} 41. Ke4 {[%emt 0:00:40]} f3 {[%emt 0:00:17]} 42. Kxf3 {[%emt 0:00:25]} Kxf5 {[%emt 0:00:05]} 43. h3 {[%emt 0:00:51]} h5 {[%emt 0:00:10]} 44. a3 {[%emt 0:00:58]} a5 {[%emt 0:00:57]} 45. b3 {[%emt 0:01:13]} b5 {[%emt 0:03:27]} 46. a4 {[%emt 0:01:32]} bxa4 {[%emt 0:00:16]} 47. bxa4 {[%emt 0:00:06]} g4+ {[%emt 0:07:26]} 48. hxg4+ {[%emt 0:03:37]} hxg4+ {[%emt 0:00:02]} 49. Kg3 {[%emt 0:00:25]} Ke4 {[%emt 0:09:06]} 50. Kxg4 {[%emt 0:00:27]} Kd3 {[%emt 0:00:11]} 51. Kf4 {[%emt 0:01:11]} Kxc3 {[%emt 0:00:35]} 52. Ke3 {[%emt 0:01:14]} Kb4 {[%emt 0:00:10]} 53. Ke4 {[%emt 0:00:30]} Kxa4 {[%emt 0:00:08]} 54. d5 {[%emt 0:00:21]} cxd5+ {[%emt 0:00:09]} 55. Kxd5 {[%emt 0:00:01]} Kb3 {[%emt 0:00:05]} 56. Kd4 {[%emt 0:00:03]} a4 {[%emt 0:00:24]} 57. Ke4 {[%emt 0:20:20]} Kc4 {[%emt 0:03:09]} 0-1